Cogmind - Beta 14 @@@ ROGUE MODE // 2024.10.02 @ 18:27:26 Player: WildValentine Result: Self-destructed Performance ------------- Evolutions (1) 500 Regions Visited (3) 600 Robots Destroyed (14) 70 Value Destroyed (337) 337 Prototype IDs (0) 0 Alien Tech Used (0) 0 Bonus (0) 0 TOTAL SCORE: 1507 Bonus ------- None Cogmind --------- Core Integrity 306/400 Matter 245/300 Energy 28/125 System Corruption 0% Temperature Warm (132) Movement Flying (110) Ox1 Location -9/Materials Parts ------- > --- POWER (1) -------- Light Ion Engine > --- PROPULSION (3) --- Flight Unit VTOL Module VTOL Module > --- UTILITY (3) ------ Heat Sink Medium Storage Unit Hacking Suite > --- WEAPON (2) ------- Improved Datajack > --- INVENTORY (10) --- Light Nuclear Core Improved Heat Sink Medium Storage Unit Sensor Array Signal Interpreter Improved Utility Shielding Improved Utility Shielding System Shield Beamcaster Peak State ------------ > --- POWER ------------ Light Ion Engine > --- PROPULSION ------- Flight Unit VTOL Module VTOL Module > --- UTILITY ---------- Heat Sink Medium Storage Unit Hacking Suite > --- WEAPON ----------- Beamcaster Improved Datajack > --- INVENTORY -------- Light Nuclear Core Compact Wheel Flight Unit Improved Heat Sink Medium Storage Unit Sensor Array Signal Interpreter Improved Utility Shielding Improved Utility Shielding System Shield [Rating: 21] Favorites ----------- Power Light Ion Engine Engine Light Ion Engine Power Core Light Nuclear Core Propulsion Wheel Wheel Wheel Flight Unit VTOL Module Utility Heat Sink Device Heat Sink Storage Medium Storage Unit Hackware Hacking Suite Weapon Medium Laser Energy Gun Medium Laser Special Melee Weapon Improved Datajack Build | -11 -10 -10 -9 ------- Run | Yrd Mat Min Mat Slots Evolved 2 | . . . 2 Power . | . . . . Propulsion 1 | . . . 1 Utility 1 | . . . 1 Weapon . | . . . . Parts Attached 22 | 6 3 4 9 Power 5 | 1 . 1 3 Engine 4 | 1 . 1 2 Core 1 | . . . 1 Reactor . | . . . . Propulsion 7 | 2 1 . 4 Treads . | . . . . Leg . | . . . . Wheel 3 | 2 1 . . Hover . | . . . . Flight 4 | . . . 4 Utility 4 | 1 2 . 1 Device 1 | . 1 . . Storage 2 | 1 1 . . Processor . | . . . . Hackware 1 | . . . 1 Protection . | . . . . Artifact . | . . . . Weapon 6 | 2 . 3 1 Energy Gun 5 | 2 . 2 1 Energy Cannon . | . . . . Ballistic Gun . | . . . . Ballistic Cannon . | . . . . Launcher . | . . . . Special Weapon . | . . . . Impact Weapon . | . . . . Slashing Weapon . | . . . . Piercing Weapon . | . . . . Special Melee Weapon 1 | . . 1 . Unidentified Prototypes . | . . . . Parts Lost 4 | . 1 2 1 Power 2 | . . 1 1 Propulsion 1 | . 1 . . Utility . | . . . . Weapon 1 | . . 1 . Highest Loss Streak 2 | . 1 2 1 To Critical Strikes . | . . . . Average Slot Usage (%) 94 | . 86 99 89 Engine 13 | . 14 14 8 Wheel 25 | . 24 28 2 Flight 2 | . . . 30 Device 10 | . 4 14 11 Storage 13 | . 14 14 11 Energy Gun 25 | . 28 26 5 Special Melee Weapon 1 | . . . 11 Peak Build Rating 21 | 6 8 15 21 Average Rating 8 | 4 6 8 17 On Entrance 7 | . 6 8 15 Naked Turns . | . . . . Heaviest Build 20 | 12 18 20 20 Greatest Support 26 | 20 26 26 26 Greatest Overweight (x) 2 | 1 1 . 2 Average Overweight (x) . | . . . . Largest Inventory Capacity 10 | 8 10 10 10 Average Capacity 9 | 7 8 10 10 Most Carried 10 | 2 9 10 10 Average Carried 7 | . 4 9 9 Final Capacity 10 | 8 10 10 10 Final Carried 10 | 2 9 10 9 Class Distribution -------------------- 98% | Mutant Dominant Class ---------------- Mutant | -10/Materials Mutant | -10/Mines Mutant | -9/Materials Resources | -11 -10 -10 -9 ----------- Run | Yrd Mat Min Mat Matter Collected 355 | 245 40 40 30 Remotely . | . . . . Salvage Created 430 | . 210 158 62 Parts 25 | . 13 6 6 Haulers Intercepted . | . . . . Recyclers Shooed . | . . . . Parts Field Recycled . | . . . . Retrieved Matter . | . . . . Parts Self-Destructed . | . . . . Prevented . | . . . . Kills | -11 -10 -10 -9 ------- Run | Yrd Mat Min Mat Combat Hostiles Destroyed 11 | . 3 4 4 Guns 10 | . 2 4 4 Classes Destroyed 4 | . 3 . 1 Worker 1 | . 1 . . Watcher 2 | . 2 . . Swarmer 4 | . . . 4 Grunt 7 | . 3 4 . Best Kill Streak 4 | . 3 2 4 Combat Bots Only 4 | . 3 2 4 Max Kills in Single Turn 1 | . 1 1 1 Gunslinging . | . . . . Exploded . | . . . . Melee . | . . . . Uniques/NPCs Destroyed . | . . . . Combat | -11 -10 -10 -9 -------- Run | Yrd Mat Min Mat Hostile Shots Fired 61 | . 19 20 22 Missed 15 | . 5 5 5 Damage Taken 538 | . 180 180 178 Core 152 | . 30 28 94 Absorbed by Shields . | . . . . Core Remaining (%) 88 | 100 . 76 . Volleys Fired 41 | . 16 15 10 Largest 2 | . 2 2 1 Hottest 100 | . 100 100 75 Shots Fired 72 | . 32 30 10 Gun 72 | . 32 30 10 Cannon . | . . . . Launcher . | . . . . Special . | . . . . Kinetic . | . . . . Thermal 72 | . 32 30 10 Explosive . | . . . . Electromagnetic . | . . . . Robot Hit Streak 13 | . 9 13 2 Robot Miss Streak 3 | . 2 3 2 Penetration Max . | . . . . Secondary Targets 1 | . . 1 . Max Gunslinging Chain 1 | . . 1 . Shots Hit Robots 46 | . 22 19 5 Core Hits 22 | . 9 9 4 Critical Kills . | . . . . Critical Parts Destroyed . | . . . . Critical Strikes 5 | . 2 1 2 Burn 5 | . 2 1 2 Melee Attacks . | . . . . Impact . | . . . . Slashing . | . . . . Piercing . | . . . . Sneak Attacks . | . . . . Combat Hostiles . | . . . . Follow-up Attacks . | . . . . Damage Inflicted 635 | . 290 242 103 Guns 621 | . 276 242 103 Cannons . | . . . . Explosions . | . . . . Melee . | . . . . Ramming 14 | . 14 . . Kinetic . | . . . . Thermal 621 | . 276 242 103 Explosive . | . . . . Electromagnetic . | . . . . Impact . | . . . . Slashing . | . . . . Piercing . | . . . . Highest Corruption . | . . . . Average Corruption . | . . . . Corruption Purged . | . . . . Corruption Blocked . | . . . . Overload Shots . | . . . . Overflow Damage . | . . . . Projectiles . | . . . . Explosions . | . . . . Melee . | . . . . Knockbacks . | . . . . Impact . | . . . . Kinetic . | . . . . Secondary . | . . . . Self-Inflicted Damage 7 | . 7 . . Shots . | . . . . Rammed 1 | . 1 . . Targets Rammed 1 | . 1 . . Kicked . | . . . . Crushed . | . . . . Highest Temperature 306 | . 306 241 238 Average Temperature 104 | . 117 90 105 Received Heat Transfer 258 | . 114 99 45 Effects 1 | . 1 . . Energy Bleed 1 | . 1 . . Siege Activations . | . . . . Robots Corrupted . | . . . . Combat Hostiles . | . . . . Parts Fried . | . . . . Impact Corruptions . | . . . . Robots Melted 1 | . 1 . . Combat Hostiles 1 | . 1 . . Parts Melted 5 | . 2 2 1 Heat Transferred 2072 | . 962 777 333 Parts Sabotaged . | . . . . Parts Stolen . | . . . . Parts Stripped . | . . . . Power Chain Reactions . | . . . . Alert | -11 -10 -10 -9 ------- Run | Yrd Mat Min Mat Peak Influence 219 | . 137 65 219 Initial 19 | . . 10 19 Average 26 | . 44 13 76 Maximum Alert Level 1 | . . . 1 Low Security (%) 99 | 100 100 100 92 Level 1 . | . . . 7 Level 2 . | . . . . Level 3 . | . . . . Level 4 . | . . . . Level 5 . | . . . . High Security . | . . . . Max Security . | . . . . Squads Dispatched 4 | . 2 1 1 Investigation 3 | . 2 1 . Extermination . | . . . . Reinforcement 1 | . . . 1 Assault . | . . . . Garrison . | . . . . Intercept . | . . . . Searches Triggered . | . . . . Construction Impeded . | . . . . Haulers Reinforced . | . . . . Active Scanning Responses . | . . . . Cargo Convoy Interrupts . | . . . . Stealth | -11 -10 -10 -9 --------- Run | Yrd Mat Min Mat Distress Signals 1 | . . . 1 Communications Jammed . | . . . . Distress Signals . | . . . . Times Spotted 27 | . 8 6 13 Peak Tracking Total 11 | . 4 2 11 Tactical Retreats 2 | . . 1 1 Traps | -11 -10 -10 -9 ------- Run | Yrd Mat Min Mat Traps Triggered 2 | . 2 . . Indirectly . | . . . . Trap Hack Attempts . | . . . . Triggered . | . . . . Disarmed . | . . . . Reprogrammed . | . . . . Reused . | . . . . Traps Extracted . | . . . . Installed . | . . . . Triggered . | . . . . Machines | -11 -10 -10 -9 ---------- Run | Yrd Mat Min Mat Machines Disabled . | . . . . Max in Single Turn . | . . . . Machines Repaired . | . . . . Machines Dismantled . | . . . . Machines Sabotaged . | . . . . Overloaded Fab Kills . | . . . . Hacking | -11 -10 -10 -9 --------- Run | Yrd Mat Min Mat Machines Accessed 3 | . 1 1 1 Terminals 2 | . 1 . 1 Fabricators . | . . . . Repair Stations . | . . . . Recycling Units . | . . . . Scanalyzers . | . . . . Garrison Access . | . . . . Total Hacks 8 | . 3 1 4 Successful 2 | . . 1 1 Failed 6 | . 3 . 3 Catastrophic . | . . . . Database Lockouts . | . . . . Manual 6 | . 3 . 3 Terminals 7 | . 3 . 4 Fabricators . | . . . . Repair Stations . | . . . . Recycling Units . | . . . . Scanalyzers . | . . . . Garrison Access . | . . . . Terminal Hacks 2 | . . 1 1 Open Door 1 | . . 1 . Recall Reinforcements 1 | . . . 1 Fabricator Hacks . | . . . . Repair Station Hacks . | . . . . Recycling Unit Hacks . | . . . . Scanalyzer . | . . . . Garrison Access Hacks . | . . . . Unauthorized Hacks . | . . . . Terminals . | . . . . Fabricators . | . . . . Repair Stations . | . . . . Recycling Units . | . . . . Scanalyzers . | . . . . Garrison Access . | . . . . Data Cores Recovered . | . . . . Used . | . . . . Hacking Detections 2 | . 1 . 1 Full Trace Events . | . . . . Feedback Events . | . . . . Feedback Blocked . | . . . . Robot Schematics Acquired . | . . . . Robots Built . | . . . . Authchips . | . . . . Time . | . . . . Total Robot Build Rating . | . . . . Part Schematics Acquired . | . . . . Parts Built . | . . . . Authchips . | . . . . Time . | . . . . Total Part Build Rating . | . . . . Parts Repaired . | . . . . Time . | . . . . Parts Recycled . | . . . . Recycled Matter . | . . . . Retrieved Matter . | . . . . Retrieved Components . | . . . . Parts Scanalyzed . | . . . . Part Schematics Acquired . | . . . . Parts Damaged . | . . . . Bothacking | -11 -10 -10 -9 ------------ Run | Yrd Mat Min Mat Used RIF Installer . | . . . . Robots Hacked . | . . . . Non-combat . | . . . . Combat . | . . . . Robot Hacks Applied . | . . . . Relay Couplers Released . | . . . . Fabnet Peak Effective % . | . . . . Robots Rewired . | . . . . Allies Hacked . | . . . . Hacks Repelled . | . . . . Allies | -11 -10 -10 -9 -------- Run | Yrd Mat Min Mat Total Allies . | . . . . Largest Group . | . . . . Highest-Rated Group . | . . . . Highest-Rated Ally . | . . . . Total Orders . | . . . . Ally Attacks . | . . . . Total Damage . | . . . . Kills . | . . . . Allies Corrupted . | . . . . Allies Melted . | . . . . Intel | -11 -10 -10 -9 ------- Run | Yrd Mat Min Mat Robot Analysis Total . | . . . . Derelict Logs Recovered 2 | . . 2 . Drone Launches . | . . . . Drone Recoveries . | . . . . Exploration | -11 -10 -10 -9 ------------- Run | Yrd Mat Min Mat Turns Passed 1501 | 46 445 904 106 Spaces Moved 931 | 45 204 567 115 Core 6 | 6 . . . Treads . | . . . . Legs . | . . . . Wheels 817 | 39 204 567 7 Hover . | . . . . Flight 108 | . . . 108 Fastest Speed 30 | 50 80 90 30 Average Speed 84 | 79 87 90 55 Slowest Speed 194 | 100 95 90 194 Overloaded Moves . | . . . . Propulsion Burnouts . | . . . . Robots Hopped . | . . . . Cave-ins Triggered . | . . . . Exploration Rate (%) 32 | 4 34 74 19 Regions Visited 3 Branch Regions 1 Pre-discovered Areas 2 | . . 2 . Known Exits Taken . | . . . . Unknown Exits Taken 3 | 1 1 1 . Scrap Searched . | . . . . Spaces Dug . | . . . . Terrain Destroyed . | . . . . Melee . | . . . . Projectile . | . . . . AOE . | . . . . Terrain Rammed . | . . . . Walls Destroyed . | . . . . Machines Disabled . | . . . . Actions | -11 -10 -10 -9 --------- Run | Yrd Mat Min Mat Total 1568 | 52 439 932 145 Wait 541 | . 199 337 5 Move 928 | 44 203 566 115 Hop . | . . . . Pick Up 21 | 2 12 6 1 Fast Attach 12 | 6 2 1 3 Attach 5 | . . 3 2 Detach 1 | . . . 1 Swap 5 | . 1 . 4 Drop 13 | . 5 4 4 Fire 41 | . 16 15 10 Melee . | . . . . Ram 1 | . 1 . . Kick . | . . . . Crush . | . . . . Escape Stasis . | . . . . Rewire . | . . . . Trap . | . . . . Miscellaneous . | . . . . Route ------- -11/Scrapyard -10/Materials -10/Mines (discovered 2 exits: *Mat x2) -9/Materials (discovered 1 exit: [*Min]) History --------- Turn | Location | Event 2 | -11/Scrapyard | Discovered new exit (range 16) 47 | -11/Scrapyard | Entered Materials 305 | -10/Materials | Build established: Mutant 455 | -10/Materials | Discovered new exit (range 9) 492 | -10/Materials | Entered Mines 557 | -10/Mines | Met a Derelict bent on vengeance 567 | -10/Mines | Learned location of Mines (-9) 706 | -10/Mines | Discovered new exit (range 6) 1285 | -10/Mines | Discovered new exit (range 4) 1286 | -10/Mines | Learned location of Zion (-7) 1298 | -10/Mines | Met a Derelict shopkeep closing up shop 1396 | -10/Mines | Entered Materials 1396 | -9/Materials | Evolved 2 slots: Propulsion x1, Utility x1 1455 | -9/Materials | Discovered new exit (range 6) 1502 | -9/Materials | Self-destructed Last Messages --------------- Recalled reinforcement squad 2TQILWYG43. 01451_ W-16 Scout sends out distress signal. 01455_ EXIT=FOUND 01464_ C-30 ARC bursts open, deploying its payload. 01464_ S-10 Pest unfolds itself. 01472_ S-10 Pest destroyed. 01477_ Acquired Lgt. Ion Engine. 01482_ S-10 Pest destroyed. 01486_ S-10 Pest suffers critical hit (Burn). 01486_ Lgt. Ion Engine melted. 01486_ S-10 Pest destroyed. 01492_ Destroyed Flight Unit. 01494_ S-10 Pest suffers critical hit (Burn). 01494_ S-10 Pest destroyed. 01496_ Dropped Com. Wheel. 01497_ Dropped Flight Unit. 01499_ C-30 ARC bursts open, deploying its payload. 01499_ G-47 Trooper unfolds itself. 01499_ G-34 Mercenary unfolds itself. 01501_ Acquired 30 matter. Map ----- +----------------------------------------------------+ | ?????????????????????????????????????????????????? | | ?????????????????????????????????????????????????? | | ?????????????????????????????????????????????????? | | ?????????????????????????????????????????????????? | | ?????????????????????????????????????????????????? | | ???????????????????????? ??##########????????????? | | ???????????????????????# ??# #????????????? | | ???????????????????????# ### #????????????? | | ???????????????????????# + #????????????? | | ???????????????????????# # #????????????? | | ???????????????????????# # #????????????? | | ???????????????????????# # #????????????? | | ???????????????????????+ # #????????????? | | ???????????????????????# # ?????????????? | | ???????????????????????# #? ???????????????? | | ???????????????????????# ####+######???????????? | | ???????????????????????# #????????? ? | | ???????????????????????# #?######## " | | ???????????????????????# #?"""""""# | | ???????????????????????###+###+### #?" !"! "# | | ??????????????????????### # ##" "# | | ??????????????????????# +=""" % # | | ??????????????????????###%""" ! # < | | ?????????????##+######### """ g # | | ?????????? #== g # # # | | ?????????? % %/@""" # ######### | | ?????????? #=""" # | | ?????????????# #####??#Y""" # | | ????????????????????????#= # | | ????????????????????????########g######+#### | | ??????????????????????????????????# # | | ??????????????????????????????????# # | | ??????????????????????????????????# # | | ??????????????????????????????????# + | | ??????????????????????????????????# #### | | ??????????????????????????????????# #??# | | ??????????????????????????????????# #??# | | ??????????????????????????????????# #??# | | ??????????????????????????????????# #??# | | ??????????????????????????????????##########??# | | ????????????????????????????????????????####### | | ?????????????????????????????????? | | ????????????????????????????????????????####### | | ??????????????????????????????????????????????# | | ??????????????????????????????????????????????# | | ??????????????????????????????????????????????# | | ?????????????????????????????????????????????## | | ?????????????????????????????????????????????# | | ?????????????????????????????????????????????# | | ?????????????????????????????????????????????# T | +----------------------------------------------------+ Best States ------------- Heat Dissipation 35 Energy Generation 10 Energy Capacity 125 Matter Stores 300 Matter Capacity 300 Sight Range 16 Terrain Scan Density 10 Evasion (%) 64 Offensive Hacking 10 Item Schematics ----------------- None Robot Schematics ------------------ None Fabricated ------------ Nothing Alien Tech Used ----------------- None Achievements -------------- None Challenges ------------ None Game ------ Seed MakeshiftRingObliterator Manual? 0 Play Time 00:18:59 Cumulative 3.0 hours Start 2024.10.02 @ 13:46:42 End 2024.10.02 @ 18:27:26 Sessions 3 Manual Loads 0 Difficulty Rogue Special Mode None Game No. 11 Rogue 11 Adventurer 0 Explorer 0 Win Type - Total 0 Types 0/0/0/0/0/0/0/0/0 Lore% 2 Gallery% 8 Achievement% 11 Wizard Run 0 Options --------- Layout 0 ASCII 0 Keyboard 0 Movement Numpad Keybinds 0 Fullscreen 1 Font 18/SmallcapsGlow Map View 76x50 Zoom Use 0% Tactical HUD 1 Map Filters NONE Filters NONE Steam 1 RUN: 21b6d90e-c489-41dc-9fc9-b696519fa9d8